Cogmind - Beta 12 @@@ ROGUE MODE // 2023.03.11 @ 17:39:51 Player: MasterOfBeings Result: Destroyed by Z-Imprinter with Zionite Laser-M Performance ------------- Evolutions (1) 500 Regions Visited (6) 1200 Robots Destroyed (32) 160 Value Destroyed (868) 868 Prototype IDs (1) 20 Alien Tech Used (0) 0 Bonus (600) 600 TOTAL SCORE: 3348 Bonus ------- Met Imprinter 300 Was Imprinted 300 Cogmind --------- Core Integrity 0/400 Matter 300/300 Energy 100/100 System Corruption 0% Temperature Cool (9) Movement Core (100) Ox1 Location -7/Deep Caves Parts ------- > --- POWER (1) -------- (None) > --- PROPULSION (2) --- (None) > --- UTILITY (3) ------ Small Storage Unit > --- WEAPON (3) ------- (None) > --- INVENTORY (8) ---- Improved Ion Engine Sensor Array Improved Light Armor Plating Improved Light Armor Plating Rocket Launcher Power Maul Makeshift Spear CR-A16's Pointy Stick Peak State ------------ > --- POWER ------------ Improved Ion Engine > --- PROPULSION ------- Light Treads Light Treads > --- UTILITY ---------- Small Storage Unit Improved Light Armor Plating Hacking Drone Bay > --- WEAPON ----------- EM Pulse Cannon Light Assault Rifle Heavy Assault Rifle > --- INVENTORY -------- Improved Ion Engine Sensor Array Improved Light Armor Plating Improved Light Armor Plating Improved Light Armor Plating EM Pulse Cannon Rocket Launcher [Rating: 24] Favorites ----------- Power Improved Ion Engine Engine Improved Ion Engine Propulsion Light Treads Treads Light Treads Wheel Wheel Utility Small Storage Unit Device Hacking Drone Bay Storage Small Storage Unit Processor Signal Interpreter Protection Improved Light Armor Plating Weapon Light Assault Rifle Energy Gun Heavy EM Pulse Gun Energy Cannon EM Pulse Cannon Ballistic Gun Light Assault Rifle Ballistic Cannon Light Cannon Impact Weapon Flail Build | -11 -10 -10 -9 -9 -7 -7 ------- Run | Jun Mat Min Mat Min Zio Dee Slots Evolved 2 | . . . 2 . . . Power . | . . . . . . . Propulsion . | . . . . . . . Utility 1 | . . . 1 . . . Weapon 1 | . . . 1 . . . Parts Attached 28 | 6 3 3 13 . 3 . Power 4 | 1 1 1 1 . . . Engine 4 | 1 1 1 1 . . . Core . | . . . . . . . Reactor . | . . . . . . . Propulsion 4 | 2 . . 2 . . . Treads 2 | . . . 2 . . . Leg . | . . . . . . . Wheel 2 | 2 . . . . . . Hover . | . . . . . . . Flight . | . . . . . . . Utility 10 | 1 1 1 5 . 2 . Device 2 | . . . 1 . 1 . Storage 4 | 1 . . 3 . . . Processor 1 | . 1 . . . . . Hackware . | . . . . . . . Protection 3 | . . 1 1 . 1 . Artifact . | . . . . . . . Weapon 10 | 2 1 1 5 . 1 . Energy Gun 3 | 2 . . 1 . . . Energy Cannon 2 | . . . 1 . 1 . Ballistic Gun 3 | . 1 . 2 . . . Ballistic Cannon 1 | . . 1 . . . . Launcher . | . . . . . . . Special Weapon . | . . . . . . . Impact Weapon 1 | . . . 1 . . . Slashing Weapon . | . . . . . . . Piercing Weapon . | . . . . . . . Special Melee Weapon . | . . . . . . . Unidentified Prototypes 1 | . . . . . 1 . Parts Lost 14 | . . . 6 . . 8 Power 2 | . . . 1 . . 1 Propulsion 4 | . . . 2 . . 2 Utility 2 | . . . . . . 2 Weapon 6 | . . . 3 . . 3 Highest Loss Streak 8 | . . . 3 . . 8 To Critical Strikes . | . . . . . . . Average Slot Usage (%) 97 | . 89 100 94 100 100 90 Engine 11 | . 13 14 10 11 11 10 Treads 18 | . . . 15 22 22 19 Wheel 4 | . 28 28 6 . . . Device 8 | . . . 5 11 11 10 Storage 10 | . 14 7 10 11 11 11 Processor 2 | . 5 14 5 . . . Protection 10 | . . 7 11 11 11 9 Energy Gun 3 | . 26 3 6 . . . Energy Cannon 8 | . . . 5 11 11 9 Ballistic Gun 16 | . . 14 8 22 22 19 Ballistic Cannon 1 | . . 10 3 . . . Impact Weapon 1 | . . . 4 . . . Naked Turns . | . . . . . . . Heaviest Build 30 | 14 14 14 26 26 30 30 Greatest Support 40 | 26 26 26 40 40 40 40 Greatest Overweight (x) 4 | . . . 1 . . 4 Average Overweight (x) . | . . . . . . . Largest Inventory Capacity 25 | 8 8 8 25 8 8 8 Average Capacity 7 | 6 8 6 8 8 8 8 Most Carried 8 | 4 8 8 8 8 8 8 Average Carried 7 | 2 5 5 5 7 7 8 Final Capacity 8 | 8 8 5 8 8 8 8 Final Carried 8 | 4 6 5 8 8 8 8 Class Distribution -------------------- 74% | Tank 22% | Mutant Dominant Class ---------------- Mutant | -10/Materials Mutant | -10/Mines Tank | -9/Materials Tank | -9/Mines Tank | -7/Zion Tank | -7/Deep Caves Resources | -11 -10 -10 -9 -9 -7 -7 ----------- Run | Jun Mat Min Mat Min Zio Dee Matter Collected 635 | 239 21 125 174 . 76 . Remotely . | . . . . . . . Salvage Created 979 | . 116 80 733 . 50 . Parts 64 | . 9 10 44 . 1 . Haulers Intercepted . | . . . . . . . Recyclers Shooed . | . . . . . . . Parts Field Recycled . | . . . . . . . Retrieved Matter . | . . . . . . . Parts Self-Destructed . | . . . . . . . Prevented 1 | . . . . . 1 . Kills | -11 -10 -10 -9 -9 -7 -7 ------- Run | Jun Mat Min Mat Min Zio Dee Combat Hostiles Destroyed 31 | . 4 9 17 . 1 . Melee 4 | . . . 4 . . . Guns 13 | . 4 3 5 . 1 . Cannons 14 | . . 6 8 . . . Classes Destroyed 8 | . 3 2 2 . 1 . Worker 1 | . . . 1 . . . Watcher 4 | . 1 . 3 . . . Swarmer 10 | . 3 3 4 . . . Grunt 10 | . 1 . 9 . . . Sentry 4 | . . . 4 . . . Demolisher 2 | . . 2 . . . . Hunter 1 | . . . . . 1 . Assembled 4 | . . 4 . . . . Best Kill Streak 6 | . 4 6 6 . 1 . Combat Bots Only 6 | . 4 6 6 . 1 . Max Kills in Single Turn 2 | . 1 1 2 . 1 . Gunslinging . | . . . . . . . Exploded . | . . . . . . . Melee 1 | . . . 1 . . . Uniques/NPCs Destroyed . | . . . . . . . Combat | -11 -10 -10 -9 -9 -7 -7 -------- Run | Jun Mat Min Mat Min Zio Dee Damage Taken 2491 | . 83 408 703 . 163 1134 Core 626 | . 10 190 93 . 20 313 Absorbed by Shields . | . . . . . . . Regen/Repaired (Parts) 70 | . . . . . 70 . Core Remaining (%) 60 | 100 . 20 . . . . Volleys Fired 71 | . 11 18 38 . 4 . Largest 3 | . 2 2 3 . 3 . Hottest 128 | . 90 70 128 . 106 . Shots Fired 161 | . 21 36 92 . 12 . Gun 108 | . 21 23 56 . 8 . Cannon 53 | . . 13 36 . 4 . Launcher . | . . . . . . . Special . | . . . . . . . Kinetic 84 | . . 31 45 . 8 . Thermal 15 | . 10 5 . . . . Explosive . | . . . . . . . Electromagnetic 62 | . 11 . 47 . 4 . Robot Hit Streak 7 | . 2 5 7 . 4 . Robot Miss Streak 5 | . 3 2 5 . 1 . Penetration Max . | . . . . . . . Secondary Targets . | . . . . . . . Shots Hit Robots 95 | . 9 19 58 . 9 . Core Hits 46 | . 6 14 25 . 1 . Critical Kills 1 | . . . 1 . . . Critical Parts Destroyed . | . . . . . . . Critical Strikes 2 | . . . 2 . . . Corrupt 1 | . . . 1 . . . Smash 1 | . . . 1 . . . Melee Attacks 16 | . . . 16 . . . Impact 16 | . . . 16 . . . Slashing . | . . . . . . . Piercing . | . . . . . . . Sneak Attacks . | . . . . . . . Combat Hostiles . | . . . . . . . Follow-up Attacks . | . . . . . . . Damage Inflicted 1830 | . 131 272 1288 . 139 . Guns 609 | . 131 92 328 . 58 . Cannons 883 | . . 180 622 . 81 . Explosions . | . . . . . . . Melee 338 | . . . 338 . . . Ramming . | . . . . . . . Kinetic 599 | . . 236 305 . 58 . Thermal 85 | . 49 36 . . . . Explosive . | . . . . . . . Electromagnetic 808 | . 82 . 645 . 81 . Impact 338 | . . . 338 . . . Slashing . | . . . . . . . Piercing . | . . . . . . . Highest Corruption 1 | . . . 1 1 1 . Average Corruption 1 | . . . 1 1 1 . Corruption Purged . | . . . . . . . Corruption Blocked . | . . . . . . . Effects 6 | . . . 4 1 1 . Message Errors 2 | . . . 1 1 . . Matter Fused 1 | . . . . . 1 . Heat Flow Errors 1 | . . . 1 . . . Misfires 1 | . . . 1 . . . Weapon Failures 1 | . . . 1 . . . Overload Shots . | . . . . . . . Overflow Damage 52 | . . . 52 . . . Projectiles 21 | . . . 21 . . . Explosions . | . . . . . . . Melee 31 | . . . 31 . . . Knockbacks . | . . . . . . . Impact . | . . . . . . . Kinetic . | . . . . . . . Secondary . | . . . . . . . Self-Inflicted Damage . | . . . . . . . Shots . | . . . . . . . Rammed . | . . . . . . . Targets Rammed . | . . . . . . . Kicked . | . . . . . . . Crushed . | . . . . . . . Highest Temperature 380 | . 240 90 380 . 192 15 Average Temperature 120 | . 101 34 155 . 99 9 Received Heat Transfer 680 | . 30 80 255 . . 315 Effects 8 | . 1 . 7 . . . Shutdowns 1 | . . . 1 . . . Energy Bleed 3 | . 1 . 2 . . . Interference 3 | . . . 3 . . . Damage (minor) 1 | . . . 1 . . . Siege Activations . | . . . . . . . Robots Corrupted . | . . . . . . . Combat Hostiles . | . . . . . . . Parts Fried 8 | . . . 7 . 1 . Impact Corruptions 2 | . . . 2 . . . Robots Melted . | . . . . . . . Combat Hostiles . | . . . . . . . Parts Melted . | . . . . . . . Heat Transferred 259 | . 148 111 . . . . Parts Sabotaged . | . . . . . . . Parts Stolen . | . . . . . . . Parts Stripped . | . . . . . . . Power Chain Reactions . | . . . . . . . Missiles Intercepted . | . . . . . . . Alert | -11 -10 -10 -9 -9 -7 -7 ------- Run | Jun Mat Min Mat Min Zio Dee Peak Influence 323 | . 142 190 323 99 . . Initial 99 | . . 55 74 99 . . Average 135 | . 100 117 163 99 . . Maximum Alert Level 1 | . . . 1 . . . Low Security (%) 76 | 100 100 100 60 100 . . Level 1 23 | . . . 40 . . . Level 2 . | . . . . . . . Level 3 . | . . . . . . . Level 4 . | . . . . . . . Level 5 . | . . . . . . . High Security . | . . . . . . . Max Security . | . . . . . . . Squads Dispatched 3 | . . . 3 . . . Investigation 2 | . . . 2 . . . Extermination . | . . . . . . . Reinforcement 1 | . . . 1 . . . Assault . | . . . . . . . Garrison . | . . . . . . . Intercept . | . . . . . . . Searches Triggered . | . . . . . . . Construction Impeded . | . . . . . . . Haulers Reinforced . | . . . . . . . Active Scanning Responses . | . . . . . . . Cargo Convoy Interrupts . | . . . . . . . Stealth | -11 -10 -10 -9 -9 -7 -7 --------- Run | Jun Mat Min Mat Min Zio Dee Distress Signals 2 | . . 1 1 . . . Communications Jammed . | . . . . . . . Distress Signals . | . . . . . . . Times Spotted 48 | . 6 16 22 . 1 3 Peak Tracking Total 9 | . 4 9 5 . 1 3 Tactical Retreats 2 | . 1 . 1 . . . Traps | -11 -10 -10 -9 -9 -7 -7 ------- Run | Jun Mat Min Mat Min Zio Dee Traps Triggered 1 | . 1 . . . . . Indirectly . | . . . . . . . Trap Hack Attempts . | . . . . . . . Triggered . | . . . . . . . Disarmed . | . . . . . . . Reprogrammed . | . . . . . . . Reused . | . . . . . . . Traps Extracted . | . . . . . . . Installed . | . . . . . . . Triggered . | . . . . . . . Machines | -11 -10 -10 -9 -9 -7 -7 ---------- Run | Jun Mat Min Mat Min Zio Dee Machines Disabled . | . . . . . . . Max in Single Turn . | . . . . . . . Machines Repaired . | . . . . . . . Machines Sabotaged . | . . . . . . . Overloaded Fab Kills . | . . . . . . . Hacking | -11 -10 -10 -9 -9 -7 -7 --------- Run | Jun Mat Min Mat Min Zio Dee Machines Accessed 10 | . 2 . 8 . . . Terminals 9 | . 2 . 7 . . . Fabricators . | . . . . . . . Repair Stations . | . . . . . . . Recycling Units 1 | . . . 1 . . . Scanalyzers . | . . . . . . . Garrison Access . | . . . . . . . Total Hacks 36 | . 8 . 28 . . . Successful 18 | . 4 . 14 . . . Failed 18 | . 4 . 14 . . . Catastrophic 2 | . . . 2 . . . Database Lockouts . | . . . . . . . Manual 7 | . . . . . 7 . Terminals 33 | . 8 . 25 . . . Fabricators . | . . . . . . . Repair Stations . | . . . . . . . Recycling Units 3 | . . . 3 . . . Scanalyzers . | . . . . . . . Garrison Access . | . . . . . . . Terminal Hacks 17 | . 4 . 13 . . . Record 6 | . 3 . 3 . . . Emergency Access Points 1 | . . . 1 . . . Alert Level 4 | . . . 4 . . . Locate Traps 1 | . . . 1 . . . Dispatch Records 1 | . . . 1 . . . Reinforcement Status 1 | . . . 1 . . . Assault Status 2 | . 1 . 1 . . . Registered Prototypes 1 | . . . 1 . . . Fabricator Hacks . | . . . . . . . Repair Station Hacks . | . . . . . . . Recycling Unit Hacks 1 | . . . 1 . . . Report Inventory 1 | . . . 1 . . . Scanalyzer . | . . . . . . . Garrison Access Hacks . | . . . . . . . Unauthorized Hacks . | . . . . . . . Terminals . | . . . . . . . Fabricators . | . . . . . . . Repair Stations . | . . . . . . . Recycling Units . | . . . . . . . Scanalyzers . | . . . . . . . Garrison Access . | . . . . . . . Data Cores Recovered . | . . . . . . . Used . | . . . . . . . Hacking Detections 10 | . 2 . 8 . . . Full Trace Events 6 | . 1 . 5 . . . Feedback Events 1 | . . . 1 . . . Corruption 1 | . . . 1 . . . Feedback Blocked . | . . . . . . . Robot Schematics Acquired . | . . . . . . . Robots Built . | . . . . . . . Authchips . | . . . . . . . Time . | . . . . . . . Total Robot Build Rating . | . . . . . . . Part Schematics Acquired . | . . . . . . . Parts Built . | . . . . . . . Authchips . | . . . . . . . Time . | . . . . . . . Total Part Build Rating . | . . . . . . . Parts Repaired . | . . . . . . . Time . | . . . . . . . Parts Recycled . | . . . . . . . Recycled Matter . | . . . . . . . Retrieved Matter . | . . . . . . . Retrieved Components . | . . . . . . . Parts Scanalyzed . | . . . . . . . Part Schematics Acquired . | . . . . . . . Parts Damaged . | . . . . . . . Bothacking | -11 -10 -10 -9 -9 -7 -7 ------------ Run | Jun Mat Min Mat Min Zio Dee Used RIF Installer . | . . . . . . . Robots Hacked . | . . . . . . . Non-combat . | . . . . . . . Combat . | . . . . . . . Robot Hacks Applied . | . . . . . . . Relay Couplers Released . | . . . . . . . Fabnet Peak Effective % . | . . . . . . . Robots Rewired . | . . . . . . . Allies Hacked . | . . . . . . . Hacks Repelled . | . . . . . . . Allies | -11 -10 -10 -9 -9 -7 -7 -------- Run | Jun Mat Min Mat Min Zio Dee Total Allies 5 | . . . . 1 4 . Largest Group 4 | . . . . 1 4 . Highest-Rated Group 153 | . . . . 31 153 . Highest-Rated Ally 40 | . . . . 31 40 . Total Orders . | . . . . . . . Ally Attacks . | . . . . . . . Total Damage . | . . . . . . . Kills . | . . . . . . . Allies Corrupted . | . . . . . . . Allies Melted . | . . . . . . . Intel | -11 -10 -10 -9 -9 -7 -7 ------- Run | Jun Mat Min Mat Min Zio Dee Robot Analysis Total . | . . . . . . . Derelict Logs Recovered 4 | . . 1 . 1 2 . Drone Launches 1 | . . . . . 1 . Drone Recoveries 1 | . . . . . . 1 Exploration | -11 -10 -10 -9 -9 -7 -7 ------------- Run | Jun Mat Min Mat Min Zio Dee Turns Passed 3320 | 54 169 119 860 242 1711 165 Spaces Moved 1937 | 45 138 65 407 147 1039 96 Core 9 | 5 . . . . . 4 Treads 1518 | . . . 240 147 1039 92 Legs . | . . . . . . . Wheels 410 | 40 138 65 167 . . . Hover . | . . . . . . . Flight . | . . . . . . . Fastest Speed 50 | 50 90 90 90 160 160 100 Average Speed 145 | 85 90 90 131 160 160 164 Slowest Speed 250 | 90 90 90 160 160 160 250 Overloaded Moves . | . . . . . . . Propulsion Burnouts . | . . . . . . . Robots Hopped . | . . . . . . . Cave-ins Triggered . | . . . . . . . Exploration Rate (%) 35 | 3 27 17 43 48 89 23 Regions Visited 6 Branch Regions 4 Pre-discovered Areas 2 | . . 1 . . 1 . Known Exits Taken 2 | . 1 1 . . . . Unknown Exits Taken 4 | 1 . . 1 1 1 . Scrap Searched 3 | . . . . . 3 . Spaces Dug . | . . . . . . . Terrain Destroyed . | . . . . . . . Melee . | . . . . . . . Projectile . | . . . . . . . AOE . | . . . . . . . Terrain Rammed . | . . . . . . . Walls Destroyed . | . . . . . . . Machines Disabled . | . . . . . . . Actions | -11 -10 -10 -9 -9 -7 -7 --------- Run | Jun Mat Min Mat Min Zio Dee Total 2293 | 60 161 92 641 154 1082 103 Wait 184 | . 5 2 141 6 25 5 Move 1931 | 44 137 64 406 146 1038 96 Hop . | . . . . . . . Pick Up 43 | 10 5 2 19 1 6 . Fast Attach 1 | . . . 1 . . . Attach 20 | 6 3 . 10 . 1 . Detach . | . . . . . . . Swap 7 | . . 3 2 . 2 . Drop 18 | . . 3 8 1 6 . Fire 71 | . 11 18 38 . 4 . Melee 16 | . . . 16 . . . Ram . | . . . . . . . Kick . | . . . . . . . Crush . | . . . . . . . Escape Stasis . | . . . . . . . Rewire 2 | . . . . . . 2 Trap . | . . . . . . . Miscellaneous . | . . . . . . . Route ------- -11/Junkyard -10/Materials (discovered 2 exits: *Min x2) -10/Mines -9/Materials -9/Mines -7/Zion (discovered 2 exits: [*Dee] / [*Pro]) -7/Deep Caves History --------- Turn | Location | Event 21 | -11/Junkyard | Discovered new exit (range 15) 55 | -11/Junkyard | Entered Materials 117 | -10/Materials | Discovered new exit (range 5) 126 | -10/Materials | Discovered new exit (range 16) 223 | -10/Materials | Identified exit to Mines 224 | -10/Materials | Entered Mines 225 | -10/Mines | Assembled infested the area 261 | -10/Mines | Core integrity fell below 50% 305 | -10/Mines | Learned location of Zion (-7) 309 | -10/Mines | Build established: Mutant 310 | -10/Mines | Discovered new exit (range 5) 332 | -10/Mines | Identified exit to Materials 343 | -10/Mines | Entered Materials 343 | -9/Materials | Evolved 2 slots: Utility x1, Weapon x1 644 | -9/Materials | Lost 3 parts (2n1w) 1036 | -9/Materials | Build established: Tank 1112 | -9/Materials | Discovered new exit (range 16) 1203 | -9/Materials | Entered Mines 1242 | -9/Mines | Received a Rocket Launcher from a helpful Derelict 1272 | -9/Mines | Received a Mining Laser from a helpful Derelict 1433 | -9/Mines | Learned 2 Materials zone layouts 1434 | -9/Mines | A Derelict revealed a hidden shortcut to a safe place 1445 | -9/Mines | Entered Zion 1445 | -7/Zion | Accompanied by 1 ally 1492 | -7/Zion | System corruption cleaned by Quarantine Array 1559 | -7/Zion | Given the Hacking Drone Bay 1562 | -7/Zion | Found Prototype Device 1564 | -7/Zion | Identified Hacking Drone Bay 1602 | -7/Zion | Learned location of Data Miner (-6) 1816 | -7/Zion | Learned location of 1 exit from Proximity Caves 1832 | -7/Zion | Learned Factory emergency access door positions 2189 | -7/Zion | Acquired unknown access codes intercepted by a Zionite 2278 | -7/Zion | Learned Factory stockpile data 2299 | -7/Zion | Discovered new exit (range 12) 2751 | -7/Zion | Found CR-A16's Pointy Stick 2921 | -7/Zion | Imprinted 2923 | -7/Zion | Declared Zion's savior 3126 | -7/Zion | Opened final containment barrier to the Deep Caves 3152 | -7/Zion | Discovered new exit (range 3) 3152 | -7/Zion | Saw the warning signs outside the Deep Caves entrance 3156 | -7/Zion | Entered Deep Caves 3156 | -7/Deep Caves | Accompanied by 5 allies 3285 | -7/Deep Caves | Attacked by Z-Imprinter 3308 | -7/Deep Caves | Core integrity fell below 50% 3314 | -7/Deep Caves | Z-Facility disabled 3319 | -7/Deep Caves | Core integrity fell below 20% 3321 | -7/Deep Caves | Destroyed by Z-Imprinter with Zionite Laser-M Last Messages --------------- 03159_ F6-FYL(M) slips into the shadows. 03159_ Q2-OU9(M) slips into the shadows. 03160_ LI-LKZ(M) slips into the shadows. 03208_ Attempting to rewire GW-B3T(b). 03208_ GW-B3T(b) is broken beyond repair. 03209_ Attempting to rewire GW-B3T(b). 03209_ GW-B3T(b) is broken beyond repair. 03271_ NEW_ZION: Z-Facility proximity alert. 03283_ Hacking Drone retrieved by Hacking Drone Bay. Z-Imprinter: GET AWAY FROM HERE! I've worked too hard for our future just to have you ruin everything! 03291_ Lgt. Treads destroyed. 03294_ Med. Armor Plating destroyed. 03294_ Lgt. Assault Rifle destroyed. 03304_ EM Pulse Cannon destroyed. 03310_ Lgt. Treads destroyed. 03310_ Hacking Drone Bay destroyed. 03311_ Imp. Ion Engine destroyed. 03314_ Hvy. Assault Rifle destroyed. 03314_ Z-Facility disabled. Map ----- +----------------------------------------------------+ | | | | | | | | | | | | | | | | | | | | | ?????????????????????????????????????????????????? | | ???????????????????????????####??????????????????? | | ??????????????????????????? ##????????????????? | | ??????????????????????????? #????##??????????? | | ?????????????????????????? ###### #??????#### | | ?????????????????????????? ## # #???### | | ?????????????????????????? ##### | | ?????????????????????????? | | ???????????????????????? | | ??????????????????????? | | ???????????????????? | | ???????????????????? """""" | | ????????????????????""""""" | | ????????????????????"""""""" | | ???????????????????""""""""" | | ???????????????????""""""@ | | ???????????????????""""""""" | | ????????????????????"""""" | | ????????????????????""""""" | | ????????????????????"""""""" zz | | ?????????????????????"" " | | ????????????????????""""o o | | ????????????????????""" | | ????????????????????"""" | | ????????????????????"""" | | ?????????????????????""""" | | ?????????????????????""""""" | | ?????????????????????? | | ????????????????????" """ | | ???????????????????"" """"" | | ???????????????????????"""""" | | ????????????????????????""""" | | ?????????????????????????"""" | | ??????????????????????????"" ? | | ??????????????????????????" ? | | ?????????????????????????? ?? | | ?????????????????????????""" ?? | | ?????????????????????????? ???? | | ??????????????????????????? ?????? | | ??????????????????????????? ????????? | +----------------------------------------------------+ Best States ------------- Heat Dissipation 28 Energy Generation 14 Energy Capacity 265 Matter Stores 300 Matter Capacity 300 Sight Range 16 Robot Scan Range 15 Terrain Scan Density 10 Armor Coverage 225 Evasion (%) 44 Recoil Reduction 2 Item Schematics ----------------- None Robot Schematics ------------------ None Fabricated ------------ Nothing Alien Tech Used ----------------- None Achievements -------------- Adventurer I Survived The Infestation Robot Respite Signs Are For Wimps The One Tourist Challenges ------------ None Game ------ Seed ThunderChipCleaver Manual? 0 Play Time 01:09:15 Cumulative 9.2 hours Start 2023.03.11 @ 15:54:28 End 2023.03.11 @ 17:39:51 Sessions 1 Manual Loads 0 Difficulty Rogue Special Mode None Game No. 19 Rogue 19 Adventurer 0 Explorer 0 Win Type - Total 0 Types 0/0/0/0/0/0/0/0/0 Lore% 8 Gallery% 18 Achievement% 8 Wizard Run 0 Options --------- ASCII 0 Keyboard 0 Movement Mouse Keybinds 0 Fullscreen 2 Font 18/SmallcapsGlow Map View 76x50 Tactical HUD 1 Map Filters NONE Filters NONE Steam 1 RUN: 801e12a1-5b02-44fa-88cc-bc9ed28ed229